[Event "*** Titled Tuesday Blitz"]
[Site "Chess.com"]
[Date "2020.04.14"]
[Round "4"]
[White "ftorodent"]
[Black "SPEEDSKATER"]
[Result "1-0"]
[WhiteElo "2691"]
[BlackElo "2816"]
[TimeControl "180+1"]
[EndTime "10:39:31 PDT"]
[Termination "ftorodent won by resignation"]

1. d4 {[%clk 0:03:00.9]} 1... d5 {[%clk 0:02:56.9]} 2. c4 {[%clk 0:03:00.6]}
2... c6 {[%clk 0:02:55.9]} 3. cxd5 {[%clk 0:02:59.8]} 3... cxd5 {[%clk
0:02:56.8]} 4. Bf4 {[%clk 0:02:59.9]} 4... Nf6 {[%clk 0:02:53.7]} 5. e3 {[%clk
0:02:59.9]} 5... Nc6 {[%clk 0:02:52.4]} 6. Nc3 {[%clk 0:02:59.8]} 6... a6 {[%clk
0:02:52.5]} 7. Bd3 {[%clk 0:02:58.9]} 7... Bg4 {[%clk 0:02:52.3]} 8. f3 {[%clk
0:02:59]} 8... Bh5 {[%clk 0:02:51.4]} 9. Nge2 {[%clk 0:02:59.5]} 9... e6 {[%clk
0:02:50.7]} 10. O-O {[%clk 0:02:59.4]} 10... Bd6 {[%clk 0:02:49.1]} 11. Rc1
{[%clk 0:02:59.4]} 11... O-O {[%clk 0:02:48.8]} 12. Na4 {[%clk 0:02:59.1]} 12...
Bxf4 {[%clk 0:02:45.4]} 13. Nxf4 {[%clk 0:02:58.9]} 13... Bg6 {[%clk 0:02:45.8]}
14. Nc5 {[%clk 0:02:58.4]} 14... Qb6 {[%clk 0:02:39.8]} 15. Bxg6 {[%clk
0:02:42.4]} 15... hxg6 {[%clk 0:02:39.6]} 16. Qb3 {[%clk 0:02:41.6]} 16... Qxb3
{[%clk 0:02:36.3]} 17. Nxb3 {[%clk 0:02:41.8]} 17... Nd7 {[%clk 0:02:34.7]} 18.
Nd3 {[%clk 0:02:39.2]} 18... Rfc8 {[%clk 0:02:34.2]} 19. Kf2 {[%clk 0:02:14.7]}
19... Kf8 {[%clk 0:02:33.6]} 20. Nbc5 {[%clk 0:02:11.9]} 20... Nxc5 {[%clk
0:02:32.3]} 21. Nxc5 {[%clk 0:02:11.9]} 21... Nd8 {[%clk 0:02:32.4]} 22. Nd7+
{[%clk 0:02:04.6]} 22... Ke8 {[%clk 0:02:16.2]} 23. Nb6 {[%clk 0:02:01.4]} 23...
Rxc1 {[%clk 0:02:01.9]} 24. Rxc1 {[%clk 0:02:01.2]} 24... Ra7 {[%clk 0:01:58.3]}
25. Nc8 {[%clk 0:01:30.6]} 25... Ra8 {[%clk 0:01:58.2]} 26. Nb6 {[%clk
0:01:30.3]} 26... Ra7 {[%clk 0:01:57.9]} 27. Rc7 {[%clk 0:01:05.5]} 27... a5
{[%clk 0:01:55.7]} 28. Nd7 {[%clk 0:01:04.8]} 28... Ra6 {[%clk 0:01:46.2]} 29.
Nc5 {[%clk 0:01:01.1]} 29... Rc6 {[%clk 0:01:44.6]} 30. Rxc6 {[%clk 0:01:01.2]}
30... bxc6 {[%clk 0:01:45.5]} 31. Ke2 {[%clk 0:00:54.1]} 31... Ke7 {[%clk
0:01:45.3]} 32. Kd3 {[%clk 0:00:53.7]} 32... Kd6 {[%clk 0:01:45.4]} 33. Kc3
{[%clk 0:00:53.7]} 33... Kc7 {[%clk 0:01:45.5]} 34. b4 {[%clk 0:00:53]} 34...
Kb6 {[%clk 0:01:45.5]} 35. a4 {[%clk 0:00:50.5]} 35... f6 {[%clk 0:01:44]} 36.
f4 {[%clk 0:00:48.3]} 36... axb4+ {[%clk 0:01:35.3]} 37. Kxb4 {[%clk 0:00:48.2]}
37... Kc7 {[%clk 0:01:26]} 38. a5 {[%clk 0:00:48]} 38... g5 {[%clk 0:01:16]} 39.
fxg5 {[%clk 0:00:45.4]} 39... fxg5 {[%clk 0:01:15.7]} 40. g4 {[%clk 0:00:44.8]}
40... g6 {[%clk 0:01:15.3]} 41. h3 {[%clk 0:00:43.3]} 41... Kb8 {[%clk
0:01:13.5]} 42. a6 {[%clk 0:00:42.6]} 42... Ka7 {[%clk 0:01:11.8]} 43. Ka5
{[%clk 0:00:42.7]} 43... Nf7 {[%clk 0:01:11.4]} 44. Nxe6 {[%clk 0:00:38.2]}
44... Nd6 {[%clk 0:01:11.4]} 45. Nxg5 {[%clk 0:00:33.2]} 45... Nc4+ {[%clk
0:01:10.7]} 46. Kb4 {[%clk 0:00:33.2]} 46... Kb6 {[%clk 0:01:08.3]} 47. e4
{[%clk 0:00:29.2]} 47... Kxa6 {[%clk 0:01:00.5]} 48. Kc5 {[%clk 0:00:28.4]}
48... Kb7 {[%clk 0:00:57.7]} 49. exd5 {[%clk 0:00:28]} 49... cxd5 {[%clk
0:00:57.8]} 50. Kxd5 {[%clk 0:00:28.2]} 50... Nd2 {[%clk 0:00:57.9]} 51. Ke6
{[%clk 0:00:27]} 51... Nc4 {[%clk 0:00:53.1]} 52. d5 {[%clk 0:00:26.2]} 52...
Kc7 {[%clk 0:00:53]} 53. Nf7 {[%clk 0:00:26.2]} 53... Nd2 {[%clk 0:00:52.3]} 54.
d6+ {[%clk 0:00:26.1]} 1-0

[Event "*** Titled Tuesday Blitz"]
[Site "Chess.com"]
[Date "2020.04.14"]
[Round "4"]
[White "GasconJR"]
[Black "Eloist"]
[Result "1/2-1/2"]
[WhiteElo "2438"]
[BlackElo "2267"]
[TimeControl "180+1"]
[EndTime "10:39:31 PDT"]
[Termination "Game drawn by repetition"]

1. e4 {[%clk 0:03:00.9]} 1... e6 {[%clk 0:02:58.3]} 2. d4 {[%clk 0:03:00.4]}
2... d5 {[%clk 0:02:57.2]} 3. Nc3 {[%clk 0:03:00.9]} 3... Nf6 {[%clk 0:02:56.4]}
4. e5 {[%clk 0:03:00.7]} 4... Nfd7 {[%clk 0:02:55.9]} 5. f4 {[%clk 0:03:01.3]}
5... c5 {[%clk 0:02:55.8]} 6. Nf3 {[%clk 0:03:02.2]} 6... Nc6 {[%clk 0:02:55.9]}
7. Be3 {[%clk 0:03:02.4]} 7... a6 {[%clk 0:02:55.8]} 8. Qd2 {[%clk 0:03:02.5]}
8... b5 {[%clk 0:02:55.6]} 9. dxc5 {[%clk 0:03:03]} 9... Bxc5 {[%clk 0:02:55.4]}
10. Bd3 {[%clk 0:03:03.4]} 10... Qb6 {[%clk 0:02:54.4]} 11. Bf2 {[%clk
0:03:03.1]} 11... Bb7 {[%clk 0:02:53.9]} 12. O-O {[%clk 0:03:01.6]} 12... Bxf2+
{[%clk 0:02:52.2]} 13. Rxf2 {[%clk 0:02:59.6]} 13... h6 {[%clk 0:02:48.6]} 14.
Kh1 {[%clk 0:02:57]} 14... O-O {[%clk 0:02:48.1]} 15. Re1 {[%clk 0:02:55.1]}
15... Rfe8 {[%clk 0:02:41.9]} 16. Rff1 {[%clk 0:02:37.3]} 16... b4 {[%clk
0:02:27.4]} 17. Na4 {[%clk 0:02:32.7]} 17... Qa5 {[%clk 0:02:24.6]} 18. b3
{[%clk 0:02:32.4]} 18... Nc5 {[%clk 0:02:12.9]} 19. Nxc5 {[%clk 0:02:27.1]}
19... Qxc5 {[%clk 0:02:13.8]} 20. f5 {[%clk 0:02:10]} 20... exf5 {[%clk
0:02:05.6]} 21. Bxf5 {[%clk 0:02:10.9]} 21... Bc8 {[%clk 0:01:48.9]} 22. Bd3
{[%clk 0:01:50.9]} 22... a5 {[%clk 0:01:19]} 23. Qf4 {[%clk 0:01:49.9]} 23...
Ba6 {[%clk 0:01:11]} 24. Ng5 {[%clk 0:01:43.5]} 24... Nxe5 {[%clk 0:00:36.3]}
25. Rxe5 {[%clk 0:01:38.6]} 25... Rxe5 {[%clk 0:00:34.6]} 26. Qxf7+ {[%clk
0:00:29.7]} 26... Kh8 {[%clk 0:00:33.8]} 27. Qg6 {[%clk 0:00:30.1]} 27... Bxd3
{[%clk 0:00:33.5]} 28. Nf7+ {[%clk 0:00:30]} 28... Kg8 {[%clk 0:00:33.5]} 29.
Nxh6+ {[%clk 0:00:30.7]} 29... Kh8 {[%clk 0:00:33.2]} 30. Nf7+ {[%clk
0:00:31.3]} 30... Kg8 {[%clk 0:00:33.2]} 31. cxd3 {[%clk 0:00:32]} 31... Qf2
{[%clk 0:00:21.8]} 32. Nh6+ {[%clk 0:00:24.9]} 32... Kh8 {[%clk 0:00:21.5]} 33.
Nf7+ {[%clk 0:00:21]} 33... Kg8 {[%clk 0:00:21.6]} 34. Nh6+ {[%clk 0:00:04.4]}
34... Kh8 {[%clk 0:00:21.6]} 35. Nf7+ {[%clk 0:00:05]} 35... Kg8 {[%clk
0:00:21.5]} 1/2-1/2

[Event "*** Titled Tuesday Blitz"]
[Site "Chess.com"]
[Date "2020.04.14"]
[Round "4"]
[White "terrapin33"]
[Black "gmkomarov"]
[Result "0-1"]
[WhiteElo "2146"]
[BlackElo "2400"]
[TimeControl "180+1"]
[EndTime "10:39:31 PDT"]
[Termination "gmkomarov won by resignation"]

1. d4 {[%clk 0:03:00.9]} 1... Nf6 {[%clk 0:02:59.2]} 2. Bg5 {[%clk 0:02:59.9]}
2... d5 {[%clk 0:02:58.3]} 3. c4 {[%clk 0:02:58.5]} 3... dxc4 {[%clk 0:02:56.3]}
4. Nc3 {[%clk 0:02:56.1]} 4... c6 {[%clk 0:02:53.3]} 5. a4 {[%clk 0:02:49.2]}
5... Qa5 {[%clk 0:02:51.3]} 6. Nf3 {[%clk 0:02:33.5]} 6... Ne4 {[%clk
0:02:46.4]} 7. Bd2 {[%clk 0:02:33]} 7... Nxd2 {[%clk 0:02:45.4]} 8. Qxd2 {[%clk
0:02:33.9]} 8... b5 {[%clk 0:02:29.5]} 9. e4 {[%clk 0:02:09.4]} 9... e6 {[%clk
0:02:29.2]} 10. Be2 {[%clk 0:02:05.9]} 10... Bb4 {[%clk 0:02:28.2]} 11. O-O
{[%clk 0:02:05.4]} 11... Qb6 {[%clk 0:02:27.9]} 12. Ne5 {[%clk 0:01:49.7]} 12...
O-O {[%clk 0:02:22.2]} 13. Rfd1 {[%clk 0:01:33.6]} 13... Nd7 {[%clk 0:02:17.5]}
14. a5 {[%clk 0:01:17.2]} 14... Bxa5 {[%clk 0:02:05.9]} 15. Nxc6 {[%clk
0:01:14.3]} 15... Bxc3 {[%clk 0:01:56.1]} 16. Ne7+ {[%clk 0:01:14]} 16... Kh8
{[%clk 0:01:56.1]} 17. bxc3 {[%clk 0:01:11.7]} 17... Bb7 {[%clk 0:01:55.1]} 18.
Qf4 {[%clk 0:00:59.5]} 18... Nf6 {[%clk 0:01:41.7]} 19. d5 {[%clk 0:00:54.5]}
19... exd5 {[%clk 0:01:33.5]} 20. exd5 {[%clk 0:00:51.7]} 20... Rad8 {[%clk
0:01:29.8]} 21. d6 {[%clk 0:00:49]} 21... Rd7 {[%clk 0:01:24.2]} 22. Nf5 {[%clk
0:00:48.6]} 22... Ne4 {[%clk 0:01:12.9]} 23. Rd4 {[%clk 0:00:37.9]} 23... Nxc3
{[%clk 0:01:10.5]} 24. Bg4 {[%clk 0:00:28.2]} 24... f6 {[%clk 0:00:54.2]} 25.
Ne7 {[%clk 0:00:21.1]} 25... Rfd8 {[%clk 0:00:44.6]} 26. Re1 {[%clk 0:00:20]}
26... Rxd6 {[%clk 0:00:39]} 27. Rxd6 {[%clk 0:00:19.3]} 27... Qxd6 {[%clk
0:00:38.1]} 28. Qxd6 {[%clk 0:00:17.7]} 28... Rxd6 {[%clk 0:00:37.2]} 29. Nd5
{[%clk 0:00:18]} 29... Bxd5 {[%clk 0:00:33.4]} 30. Re8+ {[%clk 0:00:15.2]} 30...
Bg8 {[%clk 0:00:33.1]} 31. h4 {[%clk 0:00:15.8]} 31... g6 {[%clk 0:00:26.7]} 32.
Ra8 {[%clk 0:00:13.5]} 32... b4 {[%clk 0:00:25.1]} 33. Rxa7 {[%clk 0:00:13]}
33... b3 {[%clk 0:00:25.2]} 34. Rb7 {[%clk 0:00:12.8]} 34... Bd5 {[%clk
0:00:23.3]} 35. Rb8+ {[%clk 0:00:07.7]} 35... Kg7 {[%clk 0:00:23.4]} 36. Kh2
{[%clk 0:00:07.2]} 0-1

[Event "*** Titled Tuesday Blitz"]
[Site "Chess.com"]
[Date "2020.04.14"]
[Round "4"]
[White "Duhless"]
[Black "Rozum_Ivan"]
[Result "1-0"]
[WhiteElo "3087"]
[BlackElo "2773"]
[TimeControl "180+1"]
[EndTime "10:39:33 PDT"]
[Termination "Duhless won on time"]

1. d4 {[%clk 0:03:00.9]} 1... Nf6 {[%clk 0:02:59.7]} 2. Nf3 {[%clk 0:03:00.5]}
2... e6 {[%clk 0:02:59.4]} 3. Bg5 {[%clk 0:02:59.1]} 3... h6 {[%clk 0:02:58.7]}
4. Bxf6 {[%clk 0:02:58]} 4... Qxf6 {[%clk 0:02:59.6]} 5. e4 {[%clk 0:02:58.3]}
5... d6 {[%clk 0:02:57.4]} 6. Bc4 {[%clk 0:02:57.5]} 6... Qd8 {[%clk 0:02:48]}
7. Nbd2 {[%clk 0:02:45.1]} 7... Be7 {[%clk 0:02:48.1]} 8. Qe2 {[%clk 0:02:43.5]}
8... Nd7 {[%clk 0:02:43.4]} 9. O-O-O {[%clk 0:02:42.2]} 9... c6 {[%clk
0:02:37.3]} 10. Kb1 {[%clk 0:02:40.6]} 10... d5 {[%clk 0:02:34.9]} 11. Bd3
{[%clk 0:02:38.9]} 11... Qc7 {[%clk 0:02:26.4]} 12. exd5 {[%clk 0:02:34.2]}
12... cxd5 {[%clk 0:02:24.3]} 13. h4 {[%clk 0:02:32.2]} 13... a6 {[%clk
0:02:01.9]} 14. g4 {[%clk 0:02:28.6]} 14... b5 {[%clk 0:02:01.3]} 15. g5 {[%clk
0:02:28.8]} 15... Nb6 {[%clk 0:01:37.4]} 16. Ne5 {[%clk 0:02:23.4]} 16... Bd6
{[%clk 0:01:32.9]} 17. g6 {[%clk 0:02:05.5]} 17... Bxe5 {[%clk 0:01:03]} 18.
dxe5 {[%clk 0:01:52.7]} 18... Bb7 {[%clk 0:00:56.9]} 19. Rhg1 {[%clk 0:01:45.6]}
19... O-O-O {[%clk 0:00:55.3]} 20. f4 {[%clk 0:01:41.6]} 20... Rhf8 {[%clk
0:00:48.7]} 21. f5 {[%clk 0:01:36]} 21... exf5 {[%clk 0:00:44.4]} 22. Bxf5+
{[%clk 0:01:34]} 22... Kb8 {[%clk 0:00:44.8]} 23. gxf7 {[%clk 0:01:27.7]} 23...
Rxf7 {[%clk 0:00:45]} 24. Bh3 {[%clk 0:01:26.7]} 24... Re7 {[%clk 0:00:42.1]}
25. e6 {[%clk 0:01:25.7]} 25... Bc8 {[%clk 0:00:42]} 26. Nb3 {[%clk 0:01:21.3]}
26... Nc4 {[%clk 0:00:35.8]} 27. Nd4 {[%clk 0:01:20.4]} 27... Rf8 {[%clk
0:00:35.2]} 28. Rgf1 {[%clk 0:01:18.3]} 28... Rxf1 {[%clk 0:00:30.8]} 29. Rxf1
{[%clk 0:01:19.2]} 29... Bb7 {[%clk 0:00:24.2]} 30. Rf8+ {[%clk 0:01:14.1]}
30... Ka7 {[%clk 0:00:23.5]} 31. Qf2 {[%clk 0:01:14]} 31... Qb6 {[%clk
0:00:18.1]} 32. Rf7 {[%clk 0:01:11.2]} 32... Re8 {[%clk 0:00:13.4]} 33. b3
{[%clk 0:01:08.8]} 33... Ne5 {[%clk 0:00:07.9]} 34. Rxg7 {[%clk 0:01:01.6]}
34... Ka8 {[%clk 0:00:08.3]} 35. Bg2 {[%clk 0:00:55.3]} 35... Qc5 {[%clk
0:00:04.4]} 36. Qf4 {[%clk 0:00:40.6]} 36... Nc6 {[%clk 0:00:01.3]} 37. Qc7
{[%clk 0:00:37]} 1-0

[Event "*** Titled Tuesday Blitz"]
[Site "Chess.com"]
[Date "2020.04.14"]
[Round "4"]
[White "JulAnt"]
[Black "DaggiGretarsson"]
[Result "1-0"]
[WhiteElo "2461"]
[BlackElo "2638"]
[TimeControl "180+1"]
[EndTime "10:39:33 PDT"]
[Termination "JulAnt won on time"]

1. e4 {[%clk 0:03:00.9]} 1... g6 {[%clk 0:02:59.5]} 2. d4 {[%clk 0:02:59.9]}
2... Bg7 {[%clk 0:02:59.8]} 3. Nc3 {[%clk 0:03:00.1]} 3... d6 {[%clk 0:02:59.3]}
4. Be3 {[%clk 0:02:58.1]} 4... a6 {[%clk 0:02:59.5]} 5. h4 {[%clk 0:02:57.4]}
5... Nf6 {[%clk 0:02:55.8]} 6. f3 {[%clk 0:02:55.6]} 6... h5 {[%clk 0:02:53.9]}
7. Qd2 {[%clk 0:02:55.7]} 7... b5 {[%clk 0:02:52]} 8. Nh3 {[%clk 0:02:48.6]}
8... Bxh3 {[%clk 0:02:51.3]} 9. Rxh3 {[%clk 0:02:49.5]} 9... Nbd7 {[%clk
0:02:50.8]} 10. O-O-O {[%clk 0:02:43.4]} 10... c6 {[%clk 0:02:50.1]} 11. Be2
{[%clk 0:02:38.3]} 11... Nb6 {[%clk 0:02:47.5]} 12. Bg5 {[%clk 0:02:21.8]} 12...
Qc7 {[%clk 0:02:41.8]} 13. Qe3 {[%clk 0:02:16.8]} 13... b4 {[%clk 0:02:22.5]}
14. Nb1 {[%clk 0:02:16.2]} 14... d5 {[%clk 0:02:20.5]} 15. e5 {[%clk 0:02:14.3]}
15... Ng8 {[%clk 0:01:47.1]} 16. e6 {[%clk 0:02:13.6]} 16... f6 {[%clk
0:01:45.7]} 17. Bf4 {[%clk 0:02:13.7]} 17... Qxf4 {[%clk 0:01:44.8]} 18. Qxf4
{[%clk 0:02:12.4]} 18... Bh6 {[%clk 0:01:44.9]} 19. Qxh6 {[%clk 0:02:12.4]}
19... Nxh6 {[%clk 0:01:41.9]} 20. Bd3 {[%clk 0:02:11.2]} 20... f5 {[%clk
0:00:51.2]} 21. Nd2 {[%clk 0:02:02.5]} 21... a5 {[%clk 0:00:45.2]} 22. Nb3
{[%clk 0:02:02.1]} 22... a4 {[%clk 0:00:36.3]} 23. Nc5 {[%clk 0:02:01.7]} 23...
O-O {[%clk 0:00:35.3]} 24. Re1 {[%clk 0:01:33]} 24... Kg7 {[%clk 0:00:34.6]} 25.
Rhh1 {[%clk 0:01:28.4]} 25... Ra7 {[%clk 0:00:19.7]} 26. Re2 {[%clk 0:01:17.2]}
26... f4 {[%clk 0:00:18.9]} 27. c3 {[%clk 0:01:09.2]} 27... bxc3 {[%clk
0:00:10.9]} 28. bxc3 {[%clk 0:01:10.1]} 28... Nf5 {[%clk 0:00:10.6]} 29. Bxf5
{[%clk 0:01:07.7]} 29... Rxf5 {[%clk 0:00:10.1]} 30. Kc2 {[%clk 0:01:06.5]}
30... Nc4 {[%clk 0:00:08.9]} 31. Kd3 {[%clk 0:01:01.1]} 31... a3 {[%clk
0:00:07.7]} 32. Rb1 {[%clk 0:01:01.1]} 32... Nb2+ {[%clk 0:00:07.5]} 33. Kc2
{[%clk 0:00:59.4]} 33... g5 {[%clk 0:00:07.3]} 34. hxg5 {[%clk 0:00:56.6]} 34...
Rxg5 {[%clk 0:00:07.2]} 35. Nd3 {[%clk 0:00:54.3]} 35... Nxd3 {[%clk 0:00:06.6]}
36. Kxd3 {[%clk 0:00:55.2]} 36... Kf6 {[%clk 0:00:06.8]} 37. Rb6 {[%clk
0:00:54.6]} 37... Rc7 {[%clk 0:00:04.6]} 38. Ra6 {[%clk 0:00:54.6]} 38... c5
{[%clk 0:00:04.5]} 39. dxc5 {[%clk 0:00:48.5]} 39... Rxc5 {[%clk 0:00:04]} 40.
Rxa3 {[%clk 0:00:48.5]} 40... Rc6 {[%clk 0:00:04]} 41. Ra4 {[%clk 0:00:45.3]}
41... Rxe6 {[%clk 0:00:03.6]} 42. Rxf4+ {[%clk 0:00:44.6]} 1-0

[Event "*** Titled Tuesday Blitz"]
[Site "Chess.com"]
[Date "2020.04.14"]
[Round "4"]
[White "vasblesk"]
[Black "monikarozman"]
[Result "1-0"]
[WhiteElo "2370"]
[BlackElo "2147"]
[TimeControl "180+1"]
[EndTime "10:39:33 PDT"]
[Termination "vasblesk won by resignation"]

1. d4 {[%clk 0:02:59.9]} 1... d5 {[%clk 0:02:59.8]} 2. c4 {[%clk 0:02:59.8]}
2... c6 {[%clk 0:02:59.6]} 3. Nc3 {[%clk 0:03:00.3]} 3... Nf6 {[%clk 0:02:59.7]}
4. Nf3 {[%clk 0:03:00]} 4... Bf5 {[%clk 0:02:55.5]} 5. Bf4 {[%clk 0:02:59.1]}
5... e6 {[%clk 0:02:52.3]} 6. cxd5 {[%clk 0:02:51.9]} 6... exd5 {[%clk
0:02:44.9]} 7. e3 {[%clk 0:02:50.4]} 7... Nbd7 {[%clk 0:02:44.1]} 8. Nh4 {[%clk
0:02:44.6]} 8... Bg6 {[%clk 0:02:44]} 9. Nxg6 {[%clk 0:02:42.6]} 9... hxg6
{[%clk 0:02:44.9]} 10. Bd3 {[%clk 0:02:42.2]} 10... Nh5 {[%clk 0:02:43]} 11. Qf3
{[%clk 0:02:34]} 11... Nxf4 {[%clk 0:02:32.1]} 12. Qxf4 {[%clk 0:02:34.9]} 12...
Bb4 {[%clk 0:02:28.5]} 13. a3 {[%clk 0:02:31]} 13... Ba5 {[%clk 0:02:23.1]} 14.
b4 {[%clk 0:02:29.8]} 14... Bc7 {[%clk 0:02:22.4]} 15. Qf3 {[%clk 0:02:29.1]}
15... Nf6 {[%clk 0:02:22.2]} 16. h3 {[%clk 0:02:17.7]} 16... Qd6 {[%clk
0:02:17.5]} 17. g4 {[%clk 0:01:59.5]} 17... Qe6 {[%clk 0:01:35.1]} 18. Na4
{[%clk 0:01:38.3]} 18... Nd7 {[%clk 0:00:33.3]} 19. Rb1 {[%clk 0:01:13.2]} 19...
b5 {[%clk 0:00:32.1]} 20. Nc3 {[%clk 0:01:08.4]} 20... Nb6 {[%clk 0:00:32.1]}
21. Kd2 {[%clk 0:00:58.2]} 21... O-O {[%clk 0:00:29.8]} 22. h4 {[%clk
0:00:57.1]} 22... a5 {[%clk 0:00:28.2]} 23. h5 {[%clk 0:00:41.5]} 23... axb4
{[%clk 0:00:19.9]} 24. axb4 {[%clk 0:00:42.4]} 24... Nc4+ {[%clk 0:00:14.5]} 25.
Bxc4 {[%clk 0:00:40.6]} 25... bxc4 {[%clk 0:00:15.4]} 26. Ra1 {[%clk 0:00:39.2]}
26... Rxa1 {[%clk 0:00:11.9]} 27. Rxa1 {[%clk 0:00:40.1]} 27... f5 {[%clk
0:00:12.7]} 28. gxf5 {[%clk 0:00:36]} 28... gxf5 {[%clk 0:00:10.3]} 29. Ra7
{[%clk 0:00:30.5]} 29... Bd6 {[%clk 0:00:10.7]} 30. Rb7 {[%clk 0:00:29.1]} 30...
Qf6 {[%clk 0:00:10]} 31. b5 {[%clk 0:00:25.3]} 31... cxb5 {[%clk 0:00:09.2]} 32.
Nxd5 {[%clk 0:00:24.1]} 32... f4 {[%clk 0:00:10.1]} 33. Nxf6+ {[%clk 0:00:23.5]}
33... Rxf6 {[%clk 0:00:10]} 1-0

[Event "*** Titled Tuesday Blitz"]
[Site "Chess.com"]
[Date "2020.04.14"]
[Round "4"]
[White "willc-h99"]
[Black "IMRosen"]
[Result "0-1"]
[WhiteElo "2313"]
[BlackElo "2498"]
[TimeControl "180+1"]
[EndTime "10:39:34 PDT"]
[Termination "IMRosen won on time"]

1. c4 {[%clk 0:03:00.9]} 1... e6 {[%clk 0:02:57.4]} 2. g3 {[%clk 0:03:00.9]}
2... d5 {[%clk 0:02:57.5]} 3. Bg2 {[%clk 0:03:01.6]} 3... Nf6 {[%clk 0:02:58.2]}
4. Nf3 {[%clk 0:03:01.8]} 4... dxc4 {[%clk 0:02:58.8]} 5. Qa4+ {[%clk
0:03:01.3]} 5... c6 {[%clk 0:02:59.5]} 6. Qxc4 {[%clk 0:03:01]} 6... b5 {[%clk
0:03:00.2]} 7. Qc2 {[%clk 0:02:57]} 7... Bb7 {[%clk 0:03:00.5]} 8. O-O {[%clk
0:02:56.2]} 8... Nbd7 {[%clk 0:03:00.7]} 9. a4 {[%clk 0:02:56.1]} 9... a6 {[%clk
0:03:00.4]} 10. d4 {[%clk 0:02:55]} 10... Be7 {[%clk 0:02:59]} 11. Bg5 {[%clk
0:02:39.2]} 11... O-O {[%clk 0:02:58.6]} 12. Nbd2 {[%clk 0:02:29.2]} 12... Qb6
{[%clk 0:02:55.2]} 13. Rfd1 {[%clk 0:02:11.7]} 13... Rfd8 {[%clk 0:02:48.1]} 14.
Qb3 {[%clk 0:02:03.3]} 14... c5 {[%clk 0:02:45.2]} 15. axb5 {[%clk 0:01:58.7]}
15... axb5 {[%clk 0:02:45.1]} 16. Rxa8 {[%clk 0:01:57.8]} 16... Bxa8 {[%clk
0:02:38.2]} 17. Ne5 {[%clk 0:01:25.5]} 17... Bxg2 {[%clk 0:02:25.3]} 18. Nxd7
{[%clk 0:01:24.1]} 18... Rxd7 {[%clk 0:02:14.6]} 19. Kxg2 {[%clk 0:00:45.4]}
19... cxd4 {[%clk 0:02:14.5]} 20. Bxf6 {[%clk 0:00:38]} 20... Bxf6 {[%clk
0:02:14.1]} 21. Ne4 {[%clk 0:00:38]} 21... Qc6 {[%clk 0:02:01.1]} 22. f3 {[%clk
0:00:37.9]} 22... Bd8 {[%clk 0:02:01.7]} 23. Qd3 {[%clk 0:00:30.3]} 23... Bb6
{[%clk 0:01:56.3]} 24. Ra1 {[%clk 0:00:29.5]} 24... h6 {[%clk 0:01:41.6]} 25. g4
{[%clk 0:00:28.9]} 25... Qd5 {[%clk 0:01:33.3]} 26. Ra6 {[%clk 0:00:26]} 26...
Bc7 {[%clk 0:01:19.4]} 27. Ra7 {[%clk 0:00:24]} 27... Bf4 {[%clk 0:01:18.3]} 28.
Rxd7 {[%clk 0:00:21.6]} 28... Qxd7 {[%clk 0:01:19.2]} 29. Nc5 {[%clk 0:00:17.8]}
29... Qd6 {[%clk 0:01:03.3]} 30. Qxb5 {[%clk 0:00:17.9]} 30... Bxh2 {[%clk
0:00:58.6]} 31. Ne4 {[%clk 0:00:18.1]} 31... Qb8 {[%clk 0:00:31.5]} 32. Qh5
{[%clk 0:00:17]} 32... Bf4 {[%clk 0:00:28.1]} 33. g5 {[%clk 0:00:08.3]} 33...
Qxb2 {[%clk 0:00:19.8]} 34. Kf2 {[%clk 0:00:02.7]} 34... d3 {[%clk 0:00:20.1]}
0-1

[Event "*** Titled Tuesday Blitz"]
[Site "Chess.com"]
[Date "2020.04.14"]
[Round "4"]
[White "Budisavljevic"]
[Black "HrvojeZagreb"]
[Result "1-0"]
[WhiteElo "2422"]
[BlackElo "2193"]
[TimeControl "180+1"]
[EndTime "10:39:34 PDT"]
[Termination "Budisavljevic won by resignation"]

1. d4 {[%clk 0:03:00.9]} 1... e6 {[%clk 0:02:59.6]} 2. Bf4 {[%clk 0:02:59.4]}
2... f5 {[%clk 0:02:59]} 3. Nf3 {[%clk 0:02:57.8]} 3... b6 {[%clk 0:02:58.7]} 4.
e3 {[%clk 0:02:57.2]} 4... Bb7 {[%clk 0:02:58.7]} 5. Bd3 {[%clk 0:02:57.2]} 5...
Nf6 {[%clk 0:02:58.7]} 6. O-O {[%clk 0:02:56.7]} 6... Be7 {[%clk 0:02:57.2]} 7.
Nbd2 {[%clk 0:02:55.3]} 7... O-O {[%clk 0:02:55.4]} 8. h3 {[%clk 0:02:54.9]}
8... Ne4 {[%clk 0:02:44.6]} 9. c3 {[%clk 0:02:51.1]} 9... d5 {[%clk 0:02:02.2]}
10. c4 {[%clk 0:02:32.2]} 10... c5 {[%clk 0:01:57.2]} 11. Rc1 {[%clk 0:02:07.3]}
11... Nd7 {[%clk 0:01:48.3]} 12. cxd5 {[%clk 0:02:01.7]} 12... exd5 {[%clk
0:01:42.6]} 13. dxc5 {[%clk 0:01:47.2]} 13... bxc5 {[%clk 0:01:43.5]} 14. Bb5
{[%clk 0:01:36]} 14... Nb6 {[%clk 0:01:38]} 15. Ne5 {[%clk 0:01:29.9]} 15... Bf6
{[%clk 0:01:21.9]} 16. Nxe4 {[%clk 0:01:06.4]} 16... fxe4 {[%clk 0:01:18.8]} 17.
Nc6 {[%clk 0:00:36]} 17... Bxc6 {[%clk 0:00:38.1]} 18. Bxc6 {[%clk 0:00:36.9]}
18... Rc8 {[%clk 0:00:29]} 19. Bb7 {[%clk 0:00:34]} 19... Bxb2 {[%clk
0:00:24.8]} 20. Bxc8 {[%clk 0:00:31.7]} 20... Qxc8 {[%clk 0:00:25.2]} 21. Rb1
{[%clk 0:00:30]} 21... Bf6 {[%clk 0:00:21.1]} 22. Qc2 {[%clk 0:00:27.3]} 22...
Re8 {[%clk 0:00:17]} 23. Rfc1 {[%clk 0:00:24.9]} 23... Nc4 {[%clk 0:00:16.1]}
24. Qa4 {[%clk 0:00:21.6]} 24... Qe6 {[%clk 0:00:15.4]} 25. Qxa7 {[%clk
0:00:18]} 25... g5 {[%clk 0:00:12.7]} 26. Bg3 {[%clk 0:00:15.4]} 26... Nd2
{[%clk 0:00:12.6]} 27. Rb8 {[%clk 0:00:14.4]} 27... Nf3+ {[%clk 0:00:11.4]} 28.
gxf3 {[%clk 0:00:12.2]} 28... exf3 {[%clk 0:00:12.3]} 29. Rxe8+ {[%clk
0:00:11.3]} 29... Qxe8 {[%clk 0:00:13.2]} 30. Qxc5 {[%clk 0:00:10.9]} 30... Qe6
{[%clk 0:00:13]} 31. Qc8+ {[%clk 0:00:09.3]} 31... Qxc8 {[%clk 0:00:11.8]} 32.
Rxc8+ {[%clk 0:00:10.2]} 32... Kf7 {[%clk 0:00:11.2]} 33. a4 {[%clk 0:00:11.1]}
1-0